[Event "Icelandic Chess-ch 2023"]
[Site "Hafnarfjordur"]
[Date "2023.05.16"]
[Round "2.4"]
[White "Ragnarsson, Dagur"]
[Black "Stefansson, Hannes"]
[Result "0-1"]
[ECO "E25"]
[WhiteElo "2346"]
[BlackElo "2521"]
[Annotator "TA"]
[PlyCount "78"]
[EventDate "2023.05.13"]
[EventType "tourn"]
[EventCountry "ISL"]
[SourceTitle "playchess.com"]
[Source "ChessBase"]
[SourceQuality "1"]
[TimeControl "40/5400+30:1800+30"]

{[%evp 21,78,16,9,0,13,0,0,-4,-1,-25,-16,-18,-1,-8,-2,-65,-61,-95,-8,-122,-108,-122,-120,-133,-111,-148,-140,-136,-130,-129,-131,-124,-125,-131,-135,-194,-145,-178,-175,-246,-229,-389,-381,-362,-374,-350,-325,-1864,-675,-675,-660,-690,-552,-1435,276,-1125,-1318,-1022,-986]} 1. d4 {[%emt 0:00:05]} Nf6 {[%emt 0:01:02]} 2. c4 {[%emt 0:01:15]} e6 {[%emt 0:00:34]} 3. Nc3 {[%emt 0:00:09]} Bb4 {[%emt 0:00:19]} 4. a3 {[%emt 0:00:17]} Bxc3+ {[%emt 0:00:26]} 5. bxc3 {[%emt 0:00:06]} c5 {[%emt 0:01:55]} 6. f3 {[%emt 0:01:22]} d5 {[%emt 0:02:40]} 7. cxd5 {[%emt 0:00:24]} Nxd5 {[%emt 0:00:29][%cal Bf6d5,Bd5e7,Be7c6,Bc6a5,Ba5c4][%mdl 32]} 8. dxc5 {[%emt 0:00:07]} Qa5 {[%emt 0:05:18]} 9. e4 {[%emt 0:00:06]} Ne7 {[%emt 0:06:02]} 10. Be3 {[%emt 0:06:14]} O-O {[%emt 0:05:47]} 11. Qb3 {[%emt 0:18:06]} Qc7 {[%emt 0:01:17]} 12. Bb5 {[%emt 0:03:21] E25: Nimzo-Indian: Sämisch: 5...c5 6 f3 d5 7 cxd5.} Nec6 {[%emt 0:01:19]} 13. f4 {[%emt 0:13:26]} Na5 {[%emt 0:04:36] [#]} 14. Qb1 $146 {[%emt 0:12:58] The position is equal.} ({Predecessor:} 14. Qc2 Nd7 15. Nf3 Nxc5 16. e5 b6 17. Ng5 f5 18. O-O h6 19. Nf3 Rd8 20. Rad1 {0-1 Moskalenko,V (2534)-Kosten,A (2522) La Pobla de Lillet op 15th 2005 (5)}) 14... Nd7 {[%emt 0:03:00]} 15. Bxd7 {[%emt 0:00:11] Hoping for Bb5.} Bxd7 {[%emt 0:00:12]} 16. Ne2 {[%emt 0:00:13]} Nc4 {[%emt 0:05:01][%mdl 1024] Black has compensation.} 17. Bd4 {[%emt 0:02:24]} b6 {[%emt 0:02:50]} 18. Qb4 {[%emt 0:04:28]} (18. Qa2 $11 Bb5 19. a4) 18... b5 $15 {[%emt 0:02:07]} 19. Qb1 {[%emt 0:10:02][%cal Oa3a4]} Bc6 {[%emt 0:05:08]} ({Black should play} 19... f6 $1 $17 20. Bf2 Rad8) 20. Ra2 {[%emt 0:03:02]} (20. a4 $1 $11) 20... f6 $1 $17 {[%emt 0:07:14][%cal Bf7f6,Bf6e5][%mdl 32] White is on the road to losing.} 21. O-O {[%emt 0:03:17]} e5 $1 {[%emt 0:00:13]} 22. fxe5 {[%emt 0:00:02]} fxe5 {[%emt 0:00:07]} 23. Rxf8+ {[%emt 0:00:03][%mdl 64] Remove Defender} Rxf8 {[%emt 0:00:11]} 24. Bf2 {[%emt 0:00:04]} Qf7 $1 {[%emt 0:06:23] Black is much more active. The white rooks are badly placed.} 25. Ng3 {[%emt 0:00:25] [#]} Nxa3 $1 {[%emt 0:01:36][%mdl 576] Deflection} 26. Qa1 {[%emt 0:01:00]} (26. Qb2 Nc4) 26... Nc4 {[%emt 0:02:59]} 27. Qe1 {[%emt 0:13:01] [#]} a5 $1 {[%emt 0:04:29]} 28. Ra1 {[%emt 0:00:55]} (28. Nf5 $17 {keeps fighting.}) 28... Qb7 {[%emt 0:05:50]} ({Black should try} 28... g6 $19 29. Be3 Qe7) 29. Rd1 {[%emt 0:02:18]} a4 {[%emt 0:08:02]} 30. Nf5 {[%emt 0:00:11]} (30. h3 {was necessary.}) 30... Bxe4 $19 {[%emt 0:00:14]} 31. Nd6 {[%emt 0:00:03] White is weak on the light squares} (31. Ne7+ {was the only chance.} Qxe7 32. Qxe4) 31... Nxd6 {[%emt 0:00:09]} 32. cxd6 {[%emt 0:00:04]} Bxg2 {[%emt 0:02:33] White must now prevent ...Bh3.} 33. Qxe5 {[%emt 0:03:18] Qe6+ would be deadly.} Qf7 {[%emt 0:00:51][%csl Gf8][%cal Rf7f2] Prevents Qe6.} 34. Bh4 {[%emt 0:02:54]} (34. Qg3 Bc6 35. Bd4) 34... Bc6 {[%emt 0:06:55]} (34... Qf3 $142 35. Qe6+ Kh8) 35. Qe3 {[%emt 0:01:16]} a3 {[%emt 0:01:51][%cal Ba4a3,Ba3a2][%mdl 32] Strongly threatening ...Qg6+.} 36. Be7 {[%emt 0:00:16]} Ra8 {[%emt 0:00:46]} 37. Rf1 {[%emt 0:00:57] [#]} Qxf1+ {[%emt 0:00:48][%mdl 576] Promotion} 38. Kxf1 {[%emt 0:00:04]} a2 {[%emt 0:00:07]} 39. Qe6+ {[%emt 0:00:22]} Kh8 {[%emt 0:00:06] A superb game by Stefansson.   Weighted Error Value: White=0.75/Black=0.46} 0-1

[Event "Icelandic Chess-ch 2023"]
[Site "Hafnarfjordur"]
[Date "2023.05.16"]
[Round "2.5"]
[White "Danielsen, Henrik"]
[Black "Thorfinnsson, Bragi"]
[Result "1-0"]
[ECO "D02"]
[WhiteElo "2501"]
[BlackElo "2431"]
[Annotator "TA"]
[PlyCount "109"]
[EventDate "2023.05.13"]
[EventType "tourn"]
[EventCountry "ISL"]
[SourceTitle "playchess.com"]
[Source "ChessBase"]
[SourceQuality "1"]
[TimeControl "40/5400+30:1800+30"]

{[%evp 9,109,32,23,20,25,33,23,23,43,6,27,33,25,22,23,0,6,0,0,9,16,0,0,0,0,-9,-19,-8,-10,-29,-6,-9,-1,-6,5,0,0,0,0,0,0,-3,-2,-16,0,0,0,-4,0,0,0,0,0,-8,-8,-8,-8,-8,-8,-8,-8,-24,-23,-24,0,0,0,0,8,8,8,8,31,0,8,8,8,1,8,8,8,8,139,8,262,244,704,683,645,635,985,1082,949,848,3149,2709,1573,2037,29965,29957,29980,29981]} 1. d4 {[%emt 0:00:01]} Nf6 {[%emt 0:01:39]} 2. Nf3 {[%emt 0:02:34]} g6 {[%emt 0:00:12]} 3. Nbd2 {[%emt 0:00:34]} d5 {[%emt 0:06:14]} 4. e3 {[%emt 0:00:11]} Bg7 {[%emt 0:00:29]} 5. b4 {[%emt 0:00:08]} O-O {[%emt 0:01:23]} 6. Be2 {[%emt 0:01:12] D02: 1 d4 d5 2 Nf3 sidelines, including 2...Nf6 3 g3 and 2...Nf6 3 Bf4.} Nbd7 {[%emt 0:08:30]} 7. Bb2 {[%emt 0:01:03]} a5 {[%emt 0:02:37]} 8. b5 {[%emt 0:00:16] White has an edge.} a4 {[%emt 0:02:01] [#]} 9. Rb1 $146 {[%emt 0:00:56]} ({Predecessor:} 9. c4 c6 10. O-O cxb5 11. cxb5 Nb6 12. Ba3 Ne4 13. Nxe4 dxe4 14. Nd2 f5 15. f3 {½-½ Hincu,O (2078)-Arakhamia Grant,K (2354) BL 2122 (Women) 2021 (7.3)}) 9... c5 {[%emt 0:04:03]} 10. bxc6 {[%emt 0:00:20]} bxc6 {[%emt 0:00:04]} 11. O-O {[%emt 0:00:16]} Qa5 {[%emt 0:09:21]} 12. c4 {[%emt 0:02:03]} Ba6 {[%emt 0:03:01]} 13. Qc2 {[%emt 0:04:08]} c5 {[%emt 0:12:55]} 14. Rfc1 {[%emt 0:01:38]} cxd4 {[%emt 0:05:29]} 15. Bxd4 {[%emt 0:01:13]} Rfc8 {[%emt 0:00:57]} 16. Qd1 {[%emt 0:01:51]} Ne8 {[%emt 0:11:28][%cal Bf6e8,Be8g7,Bg7e6][%mdl 32]} 17. cxd5 {[%emt 0:07:01]} Bxe2 {[%emt 0:01:44]} 18. Qxe2 {[%emt 0:00:24]} Qxd5 {[%emt 0:00:33]} 19. Nc4 {[%emt 0:01:37]} Rab8 {[%emt 0:03:23]} 20. Rxb8 {[%emt 0:02:41]} Nxb8 {[%emt 0:06:04]} 21. Bxg7 {[%emt 0:02:41]} Nxg7 {[%emt 0:00:04]} 22. Nfd2 {[%emt 0:08:04]} Ne6 {[%emt 0:01:38]} 23. Qd1 {[%emt 0:00:50]} Qc6 {[%emt 0:02:09]} 24. Rb1 {[%emt 0:00:24]} Nd7 {[%emt 0:00:50]} 25. Rb4 {[%emt 0:06:46]} Ndc5 {[%emt 0:01:41]} 26. Qf3 {[%emt 0:01:17]} Qxf3 {[%emt 0:02:45]} 27. gxf3 {[%emt 0:00:48][%cal Bg2f3,Bf3e4,Be4e5][%mdl 32]} Rd8 {[%emt 0:02:08]} 28. Kg2 {[%emt 0:06:11]} Rd3 {[%emt 0:02:01]} 29. Ne4 {[%emt 0:01:44]} Nxe4 {[%emt 0:02:58]} 30. fxe4 $11 {[%emt 0:00:09][%mdl 4096] Endgame KRN-KRN} Nc5 {[%emt 0:00:14]} 31. Kf3 {[%emt 0:08:53]} Rc3 {[%emt 0:00:37] Hoping for ...Rc2.} 32. Nb6 {[%emt 0:00:56]} Rc2 {[%emt 0:03:37]} 33. Rc4 $1 {[%emt 0:00:47]} Rxc4 {[%emt 0:00:49]} 34. Nxc4 {[%emt 0:00:01] KN-KN} f6 {[%emt 0:00:11]} 35. e5 {[%emt 0:05:39]} f5 {[%emt 0:00:17]} 36. Ke2 {[%emt 0:01:10]} Kf7 {[%emt 0:00:45]} 37. f4 {[%emt 0:03:36]} Ke6 {[%emt 0:00:37]} 38. Nb6 {[%emt 0:00:20]} g5 {[%emt 0:02:00][%mdl 64] Deflection} 39. fxg5 {[%emt 0:01:43]} Kxe5 {[%emt 0:00:05]} 40. Kf3 {[%emt 0:00:25]} Kd6 {[%emt 0:01:44]} 41. h4 {[%emt 0:30:30][%cal Bh2h4,Bh4h5,Bh5h6][%mdl 32]} (41. Kf4 $5 {[%cal Rf4f5]}) 41... e5 {[%emt 0:30:34]} 42. a3 {[%emt 0:02:28]} Ke6 {[%emt 0:00:00]} 43. Kg3 {[%emt 0:00:00]} Ne4+ {[%emt 0:00:00]} 44. Kh3 {[%emt 0:00:00]} Nc3 {[%emt 0:00:00]} 45. h5 {[%emt 0:00:00]} Nb5 {[%emt 0:00:00]} (45... Ne4 $11) 46. Nc4 {[%emt 0:00:00]} ({Reject} 46. Nxa4 $6 Nxa3 47. Nc5+ (47. g6 hxg6 48. h6 Kf6 $11) 47... Kf7 $11) ({White has to play} 46. h6 $1 $16) 46... Nc7 $2 {[%emt 0:00:00][%mdl 8192] A mistake that costs the game.} (46... f4 $11 {and Black has nothing to worry.}) 47. h6 $1 $18 {[%emt 0:00:00][%cal Og5g6]} ({Weaker is} 47. g6 hxg6 48. hxg6 (48. h6 Kf6 $11) 48... Kf6 $11) 47... Nd5 $2 {[%emt 0:00:00] [#]} (47... Kf7 48. Nxe5+ Kg8) 48. Nb6 $1 {[%emt 0:00:00][%mdl 576] And now Nxd5 would win. Promotion} Ne7 {[%emt 0:00:00]} 49. Nxa4 {[%emt 0:00:00]} Kf7 {[%emt 0:00:00]} 50. Nc5 {[%emt 0:00:00]} Kg6 {[%emt 0:00:00]} 51. Kh4 {[%emt 0:00:00]} f4 {[%emt 0:00:00] [#]} 52. e4 $1 {[%emt 0:00:00] aiming for Kg4.} Kf7 {[%emt 0:01:33]} 53. a4 {[%emt 0:00:53][%cal Ba3a4,Ba4a5][%mdl 32] Threatens to win with a5.} Ng6+ {[%emt 0:00:33]} 54. Kg4 {[%emt 0:00:00]} Ke7 {[%emt 0:00:02]} 55. a5 {[%emt 0:00:00] Weighted Error Value: White=0.08 (flawless) /Black=0.36} 1-0

[Event "Icelandic Chess-ch 2023"]
[Site "Hafnarfjordur"]
[Date "2023.05.16"]
[Round "2.6"]
[White "Domalchuk-Jonasson, Aleksandr"]
[Black "Ingvason, Johann"]
[Result "1/2-1/2"]
[ECO "D45"]
[WhiteElo "2338"]
[BlackElo "2076"]
[Annotator "TA"]
[PlyCount "134"]
[EventDate "2023.05.13"]
[EventType "tourn"]
[EventCountry "ISL"]
[SourceTitle "playchess.com"]
[Source "ChessBase"]
[SourceQuality "1"]
[TimeControl "40/5400+30:1800+30"]

{[%evp 18,134,20,11,26,25,18,22,26,13,16,16,20,18,43,43,43,32,36,28,30,20,18,26,30,12,32,35,49,31,51,37,30,-72,-69,-235,84,43,54,0,27,26,32,33,31,25,114,116,106,95,94,0,0,0,0,0,0,0,0,0,0,0,0,0,0,0,0,0,0,0,0,3,9,4,9,5,9,3,13,8,8,4,10,8,12,0,0,0,0,0,0,0,0,0,0,0,0,-11,-19,-74,-82,-260,0,0,0,-193,0,0,0,0,0,0,0,0,0,0,0,0,0]} 1. d4 {[%emt 0:00:03]} d5 {[%emt 0:00:09]} 2. Nf3 {[%emt 0:00:54]} Nf6 {[%emt 0:00:18]} 3. c4 {[%emt 0:01:03]} c6 {[%emt 0:00:11]} 4. e3 {[%emt 0:00:06]} e6 {[%emt 0:01:14]} 5. b3 {[%emt 0:00:14]} Nbd7 {[%emt 0:01:22]} 6. Bd3 {[%emt 0:00:34]} Bd6 {[%emt 0:00:21]} 7. Bb2 {[%emt 0:00:31]} b6 {[%emt 0:01:26]} 8. O-O {[%emt 0:00:14]} O-O {[%emt 0:00:32]} 9. Nc3 {[%emt 0:01:39]} Bb7 {[%emt 0:00:53]} 10. Qc2 {[%emt 0:00:43]} Qe7 {[%emt 0:00:23] D45: Semi-Slav: 5 e3.} 11. e4 {[%emt 0:01:01]} dxe4 {[%emt 0:00:47]} 12. Nxe4 {[%emt 0:00:05]} Nxe4 {[%emt 0:03:17]} 13. Bxe4 {[%emt 0:00:05]} Nf6 {[%emt 0:00:54]} 14. Bd3 {[%emt 0:00:37]} Ba3 {[%emt 0:08:52]} 15. Bc3 {[%emt 0:01:26]} Bb4 {[%emt 0:00:09]} 16. Bxb4 {[%emt 0:05:26]} Qxb4 {[%emt 0:00:21]} 17. c5 {[%emt 0:00:15] a3 is the strong threat.} bxc5 {[%emt 0:00:35] [#]} 18. a3 $146 {[%emt 0:01:11]} ({Predecessor:} 18. dxc5 Rfd8 19. a3 Qf4 20. Bc4 Ne4 21. Be2 Rd5 22. g3 Qf5 23. Bd3 Rxc5 24. Qe2 Nc3 25. Qe3 Qh5 26. Rfc1 a5 27. Bf1 Nd5 28. Rxc5 {1-0 Macieja,B (2612)-Stachowiak,K (2436) Wroclaw op-A 6th 2011 (7)}) 18... Qa5 {[%emt 0:00:11]} 19. dxc5 {[%emt 0:02:26]} Ba6 {[%emt 0:00:23]} 20. Bxa6 {[%emt 0:14:08]} Qxa6 {[%emt 0:00:16]} 21. Ne5 {[%emt 0:00:05]} Rfd8 {[%emt 0:03:57]} 22. b4 {[%emt 0:03:41]} Rd5 {[%emt 0:00:21]} 23. Nc4 {[%emt 0:00:38]} Rad8 {[%emt 0:02:04]} 24. Rfc1 {[%emt 0:11:52]} h5 {[%emt 0:15:41]} 25. a4 {[%emt 0:06:52]} (25. h3 $11) 25... Rd4 $17 {[%emt 0:01:32][%cal Od4c4] Strongly threatening ...Rxc4!} 26. Rab1 $2 {[%emt 0:02:50]} (26. b5 $15 cxb5 27. axb5 Qxb5 28. Nd6) 26... Rb8 $2 {[%emt 0:02:32]} (26... Rxc4 $1 $19 27. Qxc4 Rd1+ {[%mdl 64] Deflection} 28. Rxd1 Qxc4) 27. Qc3 {[%emt 0:08:39]} Rd5 $1 {[%emt 0:06:05]} 28. Qc2 {[%emt 0:13:58]} (28. Qa3 $14) 28... Qc8 {[%emt 0:14:14]} 29. Nd6 {[%emt 0:01:39]} Qc7 {[%emt 0:02:34]} 30. h3 {[%emt 0:07:20]} Nd7 {[%emt 0:02:00]} 31. Rd1 {[%emt 0:01:23]} a5 {[%emt 0:05:44]} (31... Rxd1+ $1 $11 32. Qxd1 Nf6) 32. Rxd5 $16 {[%emt 0:03:56]} exd5 {[%emt 0:02:14]} 33. Qf5 {[%emt 0:05:15][%csl LRf7,LRh5]} Nf6 {[%emt 0:00:26]} 34. Qg5 {[%emt 0:05:01] White is much more active.} (34. Qf4 $1 $16) 34... Rxb4 $11 {[%emt 0:10:35]} 35. Re1 {[%emt 0:00:28] Threatening mate with Ne8.} Ne4 {[%emt 0:00:25]} (35... Rxa4 {gets mated.} 36. Ne8) 36. Qxh5 {[%emt 0:00:36]} Rb8 {[%emt 0:07:30]} (36... Nxc5 $2 37. Re8#) 37. Nxe4 {[%emt 0:01:22]} dxe4 {[%emt 0:00:06][%mdl 4096] Endgame KQR-KQR} 38. Qf5 {[%emt 0:00:35]} Rb4 {[%emt 0:01:56]} 39. g3 {[%emt 0:00:20]} g6 {[%emt 0:04:56]} 40. Qf6 {[%emt 0:00:12]} Qd7 {[%emt 0:00:21] Wards off Rd1} (40... Rxa4 $2 41. Rd1 $18) 41. Qd6 {[%emt 0:12:46]} Qxd6 {[%emt 0:10:01][%mdl 64] Remove Defender} 42. cxd6 {[%emt 0:00:20] KR-KR} Rd4 {[%emt 0:00:11] Dodges Rd1} 43. d7 {[%emt 0:02:56][%cal Oe1e4][%mdl 64] Deflection} Rxd7 {[%emt 0:02:33]} 44. Rxe4 {[%emt 0:00:04]} Rd1+ {[%emt 0:00:15]} 45. Kg2 {[%emt 0:00:04] Black should prevent Re5.} Rd5 {[%emt 0:05:10] Inhibits Re5.} 46. Kf3 {[%emt 0:05:47]} Rc5 {[%emt 0:00:32]} 47. Ke3 {[%emt 0:03:50]} f5 {[%emt 0:03:37]} 48. Re8+ {[%emt 0:01:05]} Kf7 {[%emt 0:00:10]} 49. Ra8 {[%emt 0:00:05]} Ke6 {[%emt 0:00:56]} 50. Kd3 {[%emt 0:05:02]} Rd5+ {[%emt 0:01:45]} 51. Kc4 {[%emt 0:01:56]} Rd2 {[%emt 0:00:12]} 52. Rxa5 {[%emt 0:00:09]} Rxf2 {[%emt 0:00:08]} 53. Ra8 {[%emt 0:00:24]} Rc2+ {[%emt 0:02:32]} 54. Kb3 {[%emt 0:02:15]} Rg2 {[%emt 0:00:29]} 55. a5 {[%emt 0:00:03] Threatens to win with a6.} Rxg3+ {[%emt 0:05:10]} 56. Kb4 {[%emt 0:00:04] And now a6 would win.} Kd6 {[%emt 0:00:35]} 57. Rh8 {[%emt 0:01:58]} c5+ {[%emt 0:00:28]} 58. Kc4 {[%emt 0:00:14]} (58. Ka4 $1 $11) 58... Ra3 $17 {[%emt 0:00:25] aiming for ...Ra4+.} 59. Rd8+ $2 {[%emt 0:00:53] [#]} (59. Kb5 $17) 59... Kc6 $2 {[%emt 0:01:18]} (59... Ke7 $1 $19 {[%cal Re7d8]} 60. Rg8 Kf7) 60. Rc8+ $11 {[%emt 0:00:25]} Kd6 $2 {[%emt 0:00:06]} (60... Kb7 $11 61. Rg8 Rxa5) 61. Rd8+ $1 $19 {[%emt 0:00:13] [#]} Kc7 $2 {[%emt 0:02:19]} (61... Ke7 $1 $19 {[%cal Re7d8]} 62. Rg8 Kf7) 62. Rg8 $11 {[%emt 0:00:41] The position is equal.} Rxa5 {[%emt 0:00:06] ...Kd6 would be deadly.} 63. Rxg6 {[%emt 0:00:05]} Kd7 {[%emt 0:00:09]} 64. Rf6 {[%emt 0:00:36]} f4 {[%emt 0:00:57]} 65. Kd5 {[%emt 0:00:35]} Ra4 {[%emt 0:00:40]} 66. Ke5 {[%emt 0:00:58]} Ra3 {[%emt 0:01:44]} 67. Rxf4 {[%emt 0:00:20]} Rxh3 {[%emt 0:00:10] Weighted Error Value: White=0.20 (precise) /Black=0.17 (very precise)} 1/2-1/2

[Event "Icelandic Chess-ch 2023"]
[Site "Hafnarfjordur"]
[Date "2023.05.17"]
[Round "3.1"]
[White "Ingvason, Johann"]
[Black "Ptacnikova, Lenka"]
[Result "0-1"]
[ECO "E16"]
[WhiteElo "2076"]
[BlackElo "2099"]
[Annotator "TA"]
[PlyCount "72"]
[EventDate "2023.05.13"]
[EventType "tourn"]
[EventCountry "ISL"]
[SourceTitle "playchess.com"]
[Source "ChessBase"]
[SourceQuality "1"]
[TimeControl "40/5400+30:1800+30"]

{[%evp 17,72,4,12,16,7,14,15,18,21,11,20,0,0,0,0,0,0,-11,-2,-41,-23,-95,-89,-126,-45,-53,-45,-142,-198,-265,-157,-216,-170,-240,-237,-232,-143,-193,-193,-239,-220,-232,-207,-268,-268,-334,-316,-538,-510,-869,-802,-993,-811,-754,-618,-852,-772]} 1. d4 {[%emt 0:00:30]} Nf6 {[%emt 0:00:30]} 2. c4 {[%emt 0:00:00]} e6 {[%emt 0:00:12]} 3. g3 {[%emt 0:00:01]} Bb4+ {[%emt 0:00:50]} 4. Nd2 {[%emt 0:00:09]} O-O {[%emt 0:00:26]} 5. Bg2 {[%emt 0:00:08]} d5 {[%emt 0:00:09]} 6. a3 {[%emt 0:03:54]} Be7 {[%emt 0:01:05]} 7. Ngf3 {[%emt 0:01:52]} b6 {[%emt 0:00:58]} 8. O-O {[%emt 0:02:20]} Bb7 {[%emt 0:00:30]} 9. cxd5 {[%emt 0:02:25]} exd5 {[%emt 0:02:17]} 10. b4 {[%emt 0:00:34] E16: Queen's Indian: 4 g3 Bb7 5 Bg2 Bb4+.} Nbd7 {[%emt 0:02:52][%cal Bb8d7,Bd7c5,Bc5e4][%mdl 32]} 11. Bb2 {[%emt 0:00:59]} c5 {[%emt 0:02:16]} 12. dxc5 {[%emt 0:00:50] The position is equal.} bxc5 {[%emt 0:00:04]} 13. bxc5 {[%emt 0:00:16]} Nxc5 {[%emt 0:00:17]} 14. Nb3 {[%emt 0:07:12]} (14. Rc1 $5 {[%cal Rb2f6]}) 14... Nce4 {[%emt 0:04:02]} 15. Nfd4 {[%emt 0:12:36]} Re8 {[%emt 0:03:53] [#]} 16. Nf5 $146 {[%emt 0:03:44]} ({Predecessor:} 16. Rc1 Rb8 17. e3 Qb6 18. a4 Ba6 19. Rc6 Qb7 20. Na5 Qd7 21. Rxa6 Rxb2 22. Nac6 {½-½ Sciallero,V (2269)-De la Rosa Solorzano,J (2323) W-ch42 prel07 email 2018}) 16... Bf8 {[%emt 0:01:32]} 17. Bd4 {[%emt 0:06:03]} Ba6 {[%emt 0:11:14]} 18. Ra2 {[%emt 0:08:29]} Qc8 {[%emt 0:23:47]} 19. Bxf6 {[%emt 0:13:46]} (19. Bh3 $11 {keeps the balance.} Qc6 20. Ba1) 19... Qxf5 $17 {[%emt 0:11:05]} 20. Ba1 {[%emt 0:01:58]} Rac8 {[%emt 0:04:21] Black is much more active. The white rooks are badly placed.} (20... Bc4 $17 {Threatens to win with ...Qd7.} 21. Nd4 Qd7 22. Bxe4 Rxe4) 21. Nd4 $15 {[%emt 0:00:12]} Qd7 {[%emt 0:02:49]} 22. Bxe4 {[%emt 0:18:56] White is now going downhill.} (22. Rc2 $15) 22... dxe4 $17 {[%emt 0:01:32]} 23. Rd2 {[%emt 0:01:12] White is weak on the light squares} (23. Rc2 $142) 23... Bc4 {[%emt 0:09:29]} (23... Bxa3 24. Ra2 Rc1 25. Qb3 Rxf1+ 26. Kxf1 $11) (23... Qh3 $1 $19 24. f4 exf3 25. Rxf3 Bb7) 24. Bb2 {[%emt 0:04:48]} (24. Nc2 $17 {was necessary.} Qh3 25. Re1) 24... Qh3 $19 {[%emt 0:03:05]} 25. Kh1 {[%emt 0:04:36]} (25. Re1 $142) 25... Rc5 {[%emt 0:05:45][%cal Bc8c5,Bc5h5,Bh5d5,Bd5f5][%mdl 32]} 26. Rg1 {[%emt 0:00:01]} Rh5 {[%emt 0:00:22][%csl Gh5][%cal Rh3h2]} 27. Rg2 {[%emt 0:00:01] [#]} e3 $1 {[%emt 0:04:06]} 28. fxe3 {[%emt 0:00:16]} (28. Rc2 $142 Ba6 29. f3) 28... Rxe3 $40 {[%emt 0:00:16][%mdl 128] Black wants a kill.} ({Inferior is} 28... Bd5 29. Nf3 Bc6 30. Bd4 $17) 29. Nf3 {[%emt 0:03:14] [#]} Qe6 $1 {[%emt 0:01:48]} (29... Bxa3 {is a self mate.} 30. Rd8+ Bf8 31. Rxf8+ Kxf8 32. Qd8+ Re8 33. Ba3+) 30. Bd4 {[%emt 0:02:08]} Rxa3 {[%emt 0:00:49]} 31. Bg1 {[%emt 0:02:19]} Rd5 {[%emt 0:01:15]} 32. e3 $2 {[%emt 0:00:29]} (32. Bd4) 32... Rad3 {[%emt 0:00:56] Black is clearly winning.} 33. Rge2 {[%emt 0:00:25]} (33. Qc2 $142 Rd6 34. h4) 33... Qe4 {[%emt 0:00:29] ( -> ...Rxd2)} 34. Kg2 {[%emt 0:00:01]} Rf5 {[%emt 0:01:16]} 35. Rf2 {[%emt 0:00:01]} Rxe3 {[%emt 0:00:59]} 36. Rd8 {[%emt 0:00:01]} Bd5 {[%emt 0:00:22] Weighted Error Value: White=0.68/Black=0.33} 0-1